Workbook

Sheet 部门收支总表
A1: 2018年部门预算收支总表
A2: 填报单位：临湘市就业服务局 | F2: 单位：元
A3: 收入 | C3: 支出(经济分类） | E3: 支出（功能科目）
A4: 一般预算拨款（补助） | B4: 2898679.65 | C4: 基本支出 | D4: 2341172.66 | E4: 201、一般公共服务支出 | F4: 0.00
A5: 经费拨款 | B5: 2898679.65 | C5: 301、工资福利支出 | D5: 2109172.66 | E5: 202、外交支出 | F5: 0.00
A6: 纳入预算管理的非税收入拨款 | B6: 0.00 | C6: 302、商品和服务支出 | D6: 232000.00 | E6: 203、国防支出 | F6: 0.00
A7: 纳入专户管理的非税收入拨款 | B7: 0.00 | C7: 303、对个人和家庭的补助 | D7: 0.00 | E7: 204、公共安全支出 | F7: 0.00
A8: 政府性基金拨款 | B8: 0.00 | C8: 项目支出 | D8: 780000.00 | E8: 205、教育支出 | F8: 0.00
A9: 事业单位经营收入 | B9: 0.00 | C9: 302、商品和服务支出 | D9: 710000.00 | E9: 206、科学技术支出 | F9: 0.00
A10: 上级补助收入 | B10: 0.00 | C10: 303、对个人和家庭的补助 | D10: 0.00 | E10: 207、文化体育与传媒支出 | F10: 0.00
A11: 附属单位上缴收入 | B11: 0.00 | C11: 307、债务利息及费用支出 | D11: 0.00 | E11: 208、社会保障和就业支出 | F11: 2996839.38
A12: 其他收入 | B12: 222493.01 | C12: 309、资本性支出（基本建设） | D12: 0.00 | E12: 209、社保基金支出 | F12: 0.00
A13: 上年结转 | B13: 0.00 | C13: 310、资本性支出 | D13: 70000.00 | E13: 210、医疗卫生与计划生育支出 | F13: 0.00
C14: 311、对企业补助（基本建设） | D14: 0.00 | E14: 211、节能环保支出 | F14: 0.00
C15: 312、对企业补助 | D15: 0.00 | E15: 212、城乡社区支出 | F15: 0.00
C16: 313、对社会保障金补助 | D16: 0.00 | E16: 213、农林水支出 | F16: 0.00
C17: 399、其他支出 | D17: 0.00 | E17: 214、交通运输支出 | F17: 0.00
E18: 215、资源勘探信息等支出 | F18: 0.00
E19: 216、商业服务业等支出 | F19: 0.00
E20: 217、金融支出 | F20: 0.00
E21: 219、援助其他地区支出 | F21: 0.00
E22: 220、国土海洋气象等支出 | F22: 0.00
E23: 221、住房保障支出 | F23: 124333.28
E24: 222、粮油物资储备支出 | F24: 0.00
E25: 223、国有资本经营预算支出 | F25: 0.00
E26: 227、预备费 | F26: 0.00
E27: 229、其他支出 | F27: 0.00
E28: 230、转移性支出 | F28: 0.00
E29: 231、债务还本支出 | F29: 0.00
E30: 232、债务付息支出 | F30: 0.00
E31: 233、债务发行费用支出 | F31: 0.00
A33: 本年收入合计 | B33: 3,121,172.66 | C33: 本年支出合计 | D33: 3,121,172.66 | E33: 本年支出合计 | F33: 3,121,172.66

Sheet 部门收入总表
A2: 部门收入总体情况表
A3: 单位临湘市就业服务局 | K3: 单位：万元
A4: 单位 | C4: 总计 | D4: 一般预算拨款 | F4: 纳入专户管理的非税收入拨款 | G4: 政府性基金拨款 | H4: 上级补助收入 | I4: 附属单位上缴收入 | J4: 其他收入 | K4: 上年结转
A5: 单位代码 | B5: 单位名称 | D5: 经费拨款 | E5: 纳入预算管理的非税收入拨款
B6: 合计 | C6: =C7 -> 3121172.66 | D6: =D7 -> 2898679.65 | E6: =E7 -> 0.00 | F6: =F7 -> 0.00 | G6: =G7 -> 0.00 | H6: =H7 -> 0.00 | I6: =I7 -> 0.00 | J6: =J7 -> 222493.01 | K6: =K7 -> 0.00
A7: 502002 | B7: 社保股 | C7: 3121172.66 | D7: 2898679.65 | E7: 0.00 | F7: 0.00 | G7: 0.00 | H7: 0.00 | I7: 0.00 | J7: 222493.01 | K7: 0.00

Sheet 部门支出总表
A2: 部门支出总体情况表
A3: 单位:临湘市就业服务局 | K3: 单位：万元
A4: 功能科目 | E4: 总计 | F4: 一般预算拨款 | H4: 纳入专户管理的非税收入拨款 | I4: 政府性基金拨款 | J4: 上级补助收入 | K4: 其他收入
A5: 类 | B5: 款 | C5: 项 | D5: 科目名称 | F5: 经费拨款 | G5: 纳入预算管理的非税收入拨款
D6: 合计 | E6: =SUM(E7:E11) -> 3121172.66 | F6: =SUM(F7:F11) -> 2898679.65 | G6: =SUM(G7:G11) -> 0.00 | H6: =SUM(H7:H11) -> 0.00 | I6: =SUM(I7:I11) -> 0.00 | J6: =SUM(J7:J11) -> 0.00 | K6: =SUM(K7:K11) -> 222493.01
A7: 208 | B7: 01 | C7: 09 | D7: 社会保险经办机构 | E7: 1894957.62 | F7: 1722183.13 | G7: 0.00 | H7: 0.00 | I7: 0.00 | J7: 0.00 | K7: 172774.49
A8: 208 | B8: 05 | C8: 06 | D8: 机关事业单位职业年金缴费支出 | E8: 11048.56 | F8: 0.00 | G8: 0.00 | H8: 0.00 | I8: 0.00 | J8: 0.00 | K8: 11048.56
A9: 208 | B9: 05 | C9: 05 | D9: 机关事业单位基本养老保险缴费支出 | E9: 310833.20 | F9: 283211.80 | G9: 0.00 | H9: 0.00 | I9: 0.00 | J9: 0.00 | K9: 27621.40
A10: 208 | B10: 01 | C10: 06 | D10: 就业管理事务 | E10: 780000.00 | F10: 780000.00 | G10: 0.00 | H10: 0.00 | I10: 0.00 | J10: 0.00 | K10: 0.00
A11: 221 | B11: 02 | C11: 01 | D11: 住房公积金 | E11: 124333.28 | F11: 113284.72 | G11: 0.00 | H11: 0.00 | I11: 0.00 | J11: 0.00 | K11: 11048.56

Sheet 部门支出总表(分类)
A2: 部门支出总表分类
A3: 单位临湘市就业服务局 | Q3: 单位：万元
A4: 功能科目 | E4: 总计 | F4: 基本支出 | J4: 项目支出
A5: 科目编码 | D5: 科目名称 | F5: 合计 | G5: 工资福利支出 | H5: 一般商品和服务支出 | I5: 对个人和家庭的补助 | J5: 合计 | K5: 商品和服务支出 | L5: 对个人和家庭的补助支出 | M5: 基本建设 | N5: 其他资本性支出 | O5: 对企事业单位的补贴 | P5: 其他支出 | Q5: 债务利息及费用支出
A6: 类 | B6: 款 | C6: 项
D7: 合计 | E7: =SUM(E8:E12) -> 3121172.66 | F7: =SUM(F8:F12) -> 2341172.66 | G7: =SUM(G8:G12) -> 2109172.66 | H7: =SUM(H8:H12) -> 232000.00 | I7: =SUM(I8:I12) -> 0.00 | J7: =SUM(J8:J12) -> 780000.00 | K7: =SUM(K8:K12) -> 710000.00 | L7: =SUM(L8:L12) -> 0.00 | M7: =SUM(M8:M12) -> 0.00 | N7: =SUM(N8:N12) -> 70000.00 | O7: =SUM(O8:O12) -> 0.00 | P7: =SUM(P8:P12) -> 0.00 | Q7: =SUM(Q8:Q12) -> 0.00
A8: 208 | B8: 05 | C8: 05 | D8: 机关事业单位基本养老保险缴费支出 | E8: 310833.20 | F8: 310833.20 | G8: 310833.20 | H8: 0.00 | I8: 0.00 | J8: 0.00 | K8: 0.00 | L8: 0.00 | M8: 0.00 | N8: 0.00 | O8: 0.00 | P8: 0.00 | Q8: 0.00
A9: 208 | B9: 01 | C9: 09 | D9: 社会保险经办机构 | E9: 1894957.62 | F9: 1894957.62 | G9: 1662957.62 | H9: 232000.00 | I9: 0.00 | J9: 0.00 | K9: 0.00 | L9: 0.00 | M9: 0.00 | N9: 0.00 | O9: 0.00 | P9: 0.00 | Q9: 0.00
A10: 208 | B10: 05 | C10: 06 | D10: 机关事业单位职业年金缴费支出 | E10: 11048.56 | F10: 11048.56 | G10: 11048.56 | H10: 0.00 | I10: 0.00 | J10: 0.00 | K10: 0.00 | L10: 0.00 | M10: 0.00 | N10: 0.00 | O10: 0.00 | P10: 0.00 | Q10: 0.00
A11: 208 | B11: 01 | C11: 06 | D11: 就业管理事务 | E11: 780000.00 | F11: 0.00 | G11: 0.00 | H11: 0.00 | I11: 0.00 | J11: 780000.00 | K11: 710000.00 | L11: 0.00 | M11: 0.00 | N11: 70000.00 | O11: 0.00 | P11: 0.00 | Q11: 0.00
A12: 221 | B12: 02 | C12: 01 | D12: 住房公积金 | E12: 124333.28 | F12: 124333.28 | G12: 124333.28 | H12: 0.00 | I12: 0.00 | J12: 0.00 | K12: 0.00 | L12: 0.00 | M12: 0.00 | N12: 0.00 | O12: 0.00 | P12: 0.00 | Q12: 0.00

Sheet 基本-工资福利
A2: 基本支出预算明细表-工资福利
A3: 单位临湘市就业服务局
A4: 功能科目 | D4: 科目名称 | E4: 总计 | F4: 工资性支出 | K4: 社会保障缴费 | S4: 伙食补贴支出 | U4: 其他工资福利支出
A5: 类 | B5: 款 | C5: 项 | F5: 合计 | G5: 基本工资 | H5: 津贴补贴 | I5: 奖金 | J5: 绩效工资 | K5: 合计 | L5: 基本医疗保险 | M5: 医疗费 | N5: 其他社会保障缴费 | O5: 机关事业单位基本养老保险缴费 | P5: 职业年金 | Q5: 住房公积金 | R5: 公务员医疗补助缴费 | S5: 合计 | T5: 伙食补助费
D6: 合计 | E6: =E7 -> 2,109,172.66 | F6: =F7 -> 1,554,166.00 | G6: =G7 -> 887,304.00 | H6: =H7 -> 592,920.00 | I6: =I7 -> 73,942.00 | J6: =J7 -> 0.00 | K6: =K7 -> 555,006.66 | L6: =L7 -> 108,791.62 | M6: =M7 -> 0.00 | N6: =N7 -> 0.00 | O6: =O7 -> 310,833.20 | P6: =P7 -> 11,048.56 | Q6: =Q7 -> 124,333.28 | R6: =R7 -> 0.00 | S6: =S7 -> 0.00 | T6: =T7 -> 0.00 | U6: =U7 -> 0.00
E7: =SUM(E8:E11) -> 2,109,172.66 | F7: =SUM(F8:F11) -> 1,554,166.00 | G7: =SUM(G8:G11) -> 887,304.00 | H7: =SUM(H8:H11) -> 592,920.00 | I7: =SUM(I8:I11) -> 73,942.00 | J7: =SUM(J8:J11) -> 0.00 | K7: =SUM(K8:K11) -> 555,006.66 | L7: =SUM(L8:L11) -> 108,791.62 | M7: =SUM(M8:M11) -> 0.00 | N7: =SUM(N8:N11) -> 0.00 | O7: =SUM(O8:O11) -> 310,833.20 | P7: =SUM(P8:P11) -> 11,048.56 | Q7: =SUM(Q8:Q11) -> 124,333.28 | R7: =SUM(R8:R11) -> 0.00 | S7: =SUM(S8:S11) -> 0.00 | T7: =SUM(T8:T11) -> 0.00 | U7: =SUM(U8:U11) -> 0.00
A8: 208 | B8: 05 | C8: 06 | D8: 机关事业单位职业年金缴费支出 | E8: 11,048.56 | F8: 0.00 | G8: 0.00 | H8: 0.00 | I8: 0.00 | J8: 0.00 | K8: 11,048.56 | L8: 0.00 | M8: 0.00 | N8: 0.00 | O8: 0.00 | P8: 11,048.56 | Q8: 0.00 | R8: 0.00 | S8: 0.00 | T8: 0.00 | U8: 0.00
A9: 208 | B9: 05 | C9: 05 | D9: 机关事业单位基本养老保险缴费支出 | E9: 310,833.20 | F9: 0.00 | G9: 0.00 | H9: 0.00 | I9: 0.00 | J9: 0.00 | K9: 310,833.20 | L9: 0.00 | M9: 0.00 | N9: 0.00 | O9: 310,833.20 | P9: 0.00 | Q9: 0.00 | R9: 0.00 | S9: 0.00 | T9: 0.00 | U9: 0.00
A10: 208 | B10: 01 | C10: 09 | D10: 社会保险经办机构 | E10: 1,662,957.62 | F10: 1,554,166.00 | G10: 887,304.00 | H10: 592,920.00 | I10: 73,942.00 | J10: 0.00 | K10: 108,791.62 | L10: 108,791.62 | M10: 0.00 | N10: 0.00 | O10: 0.00 | P10: 0.00 | Q10: 0.00 | R10: 0.00 | S10: 0.00 | T10: 0.00 | U10: 0.00
A11: 221 | B11: 02 | C11: 01 | D11: 住房公积金 | E11: 124,333.28 | F11: 0.00 | G11: 0.00 | H11: 0.00 | I11: 0.00 | J11: 0.00 | K11: 124,333.28 | L11: 0.00 | M11: 0.00 | N11: 0.00 | O11: 0.00 | P11: 0.00 | Q11: 124,333.28 | R11: 0.00 | S11: 0.00 | T11: 0.00 | U11: 0.00

Sheet 基本-商品和服务支出
A2: 基本支出预算明细表-商品和服务支出
A3: 单位临湘市就业服务局 | W3: 单位：元
A4: 功能科目 | D4: 科目名称 | E4: 总计 | F4: 办公费 | G4: 日常印刷费 | H4: 水费 | I4: 电费 | J4: 邮电费 | K4: 取暖费 | L4: 物业管理费 | M4: 差旅费 | N4: 日常维修(护)费 | O4: 租赁费 | P4: 会议费 | Q4: 培训费 | R4: 公务接待费 | S4: 劳务费 | T4: 工会经费 | U4: 福利费 | V4: 公务用车运行维护费 | W4: 其他交通费 | X4: 其他一般商品和服务支出
A5: 类 | B5: 款 | C5: 项
D6: 合计 | E6: =E7 -> 232,000.00 | F6: =F7 -> 16,800.00 | G6: =G7 -> 17,450.00 | H6: =H7 -> 15,600.00 | I6: =I7 -> 21,200.00 | J6: =J7 -> 20,250.00 | K6: =K7 -> 0.00 | L6: =L7 -> 0.00 | M6: =M7 -> 42,000.00 | N6: =N7 -> 14,000.00 | O6: =O7 -> 0.00 | P6: =P7 -> 16,800.00 | Q6: =Q7 -> 28,400.00 | R6: =R7 -> 28,000.00 | S6: =S7 -> 0.00 | T6: =T7 -> 1,700.00 | U6: =U7 -> 1,800.00 | V6: =V7 -> 0.00 | W6: =W7 -> 0.00 | X6: =X7 -> 8,000.00
A7: 208 | B7: 01 | C7: 09 | D7: 社会保险经办机构 | E7: 232,000.00 | F7: 16,800.00 | G7: 17,450.00 | H7: 15,600.00 | I7: 21,200.00 | J7: 20,250.00 | K7: 0.00 | L7: 0.00 | M7: 42,000.00 | N7: 14,000.00 | O7: 0.00 | P7: 16,800.00 | Q7: 28,400.00 | R7: 28,000.00 | S7: 0.00 | T7: 1,700.00 | U7: 1,800.00 | V7: 0.00 | W7: 0.00 | X7: 8,000.00

Sheet 基本-个人家庭
A2: 基本支出明细表-对个人和家庭的补助
A3: 单位临湘市就业服务局 | P3: 单位：元
A4: 功能科目 | D4: 科目名称 | E4: 总计 | F4: 离休费 | G4: 退休费 | H4: 退职(役)费 | I4: 抚恤金 | J4: 生活补助 | K4: 救济费 | L4: 医疗费 | M4: 助学金 | N4: 奖励金 | O4: 生产补贴 | P4: 其他对个人和家庭的补助
A5: 类 | B5: 款 | C5: 项

Sheet 财政拨款收支总表
A1: 2018年部门预算收支总表
A2: 填报单位：临湘市就业服务局 | G2: 单位：元
A3: 收入 | C3: 支出（功能科目）
A4: 项目 | B4: 本年预算 | C4: 项目 | D4: 合计 | E4: 一般公共预算 | F4: 政府性基金预算 | G4: 国有资本经营预算
A5: 一般预算拨款（补助） | B5: 2898679.65 | C5: 201、一般公共服务支出 | D5: 0.00 | E5: 0.00 | F5: 0.00
A6: 经费拨款 | B6: 2898679.65 | C6: 202、外交支出 | D6: 0.00 | E6: 0.00 | F6: 0.00
A7: 纳入预算管理的非税收入拨款 | B7: 0.00 | C7: 203、国防支出 | D7: 0.00 | E7: 0.00 | F7: 0.00
A8: 纳入专户管理的非税收入拨款 | B8: 0.00 | C8: 204、公共安全支出 | D8: 0.00 | E8: 0.00 | F8: 0.00
A9: 政府性基金拨款 | B9: 0.00 | C9: 205、教育支出 | D9: 0.00 | E9: 0.00 | F9: 0.00
A10: 事业单位经营收入 | B10: 0.00 | C10: 206、科学技术支出 | D10: 0.00 | E10: 0.00 | F10: 0.00
A11: 上级补助收入 | B11: 0.00 | C11: 207、文化体育与传媒支出 | D11: 0.00 | E11: 0.00 | F11: 0.00
A12: 附属单位上缴收入 | B12: 0.00 | C12: 208、社会保障和就业支出 | D12: 2996839.38 | E12: 0.00 | F12: 0.00
A13: 其他收入 | B13: 222493.01 | C13: 209、社保基金支出 | D13: 0.00 | E13: 0.00 | F13: 0.00
A14: 上年结转 | B14: 0.00 | C14: 210、医疗卫生与计划生育支出 | D14: 0.00 | E14: 0.00 | F14: 0.00
C15: 211、节能环保支出 | D15: 0.00 | E15: 0.00 | F15: 0.00
C16: 212、城乡社区支出 | D16: 0.00 | E16: 0.00 | F16: 0.00
C17: 213、农林水支出 | D17: 0.00 | E17: 0.00 | F17: 0.00
C18: 214、交通运输支出 | D18: 0.00 | E18: 0.00 | F18: 0.00
C19: 215、资源勘探信息等支出 | D19: 0.00 | E19: 0.00 | F19: 0.00
C20: 216、商业服务业等支出 | D20: 0.00 | E20: 0.00 | F20: 0.00
C21: 217、金融支出 | D21: 0.00 | E21: 0.00 | F21: 0.00
C22: 219、援助其他地区支出 | D22: 0.00 | E22: 0.00 | F22: 0.00
C23: 220、国土海洋气象等支出 | D23: 0.00 | E23: 0.00 | F23: 0.00
C24: 221、住房保障支出 | D24: 124333.28 | E24: 0.00 | F24: 0.00
C25: 222、粮油物资储备支出 | D25: 0.00 | E25: 0.00 | F25: 0.00
C26: 223、国有资本经营预算支出 | D26: 0.00 | E26: 0.00 | F26: 0.00
C27: 227、预备费 | D27: 0.00 | E27: 0.00 | F27: 0.00
C28: 229、其他支出 | D28: 0.00 | E28: 0.00 | F28: 0.00
C29: 230、转移性支出 | D29: 0.00 | E29: 0.00 | F29: 0.00
C30: 231、债务还本支出 | D30: 0.00 | E30: 0.00 | F30: 0.00
C31: 232、债务付息支出 | D31: 0.00 | E31: 0.00 | F31: 0.00
C32: 233、债务发行费用支出 | D32: 0.00 | E32: 0.00 | F32: 0.00
A34: 本年收入合计 | B34: 3,121,172.66 | C34: 本年支出合计 | D34: 3,121,172.66 | E34: 0.0000 | F34: 0.00

Sheet 一般预算支出表
A2: 一般公共预算支出情况表
A3: 单位临湘市就业服务局 | P3: 单位：元
A4: 功能科目 | E4: 总计 | F4: 基本支出 | J4: 项目支出
A5: 科目编码 | D5: 科目名称 | F5: 合计 | G5: 工资福利支出 | H5: 一般商品和服务支出 | I5: 对个人和家庭的补助 | J5: 合计 | K5: 商品和服务支出 | L5: 对个人和家庭的补助支出 | M5: 基本建设 | N5: 其他资本性支出 | O5: 对企事业单位的补贴 | P5: 其他支出 | Q5: 债务利息及费用支出
A6: 类 | B6: 款 | C6: 项
D7: 合计 | E7: =SUM(E8:E11) -> 2,898,679.65 | F7: =SUM(F8:F11) -> 2,118,679.65 | G7: =SUM(G8:G11) -> 1,911,679.65 | H7: =SUM(H8:H11) -> 207,000.00 | I7: =SUM(I8:I11) -> 0.00 | J7: =SUM(J8:J11) -> 780,000.00 | K7: =SUM(K8:K11) -> 710,000.00 | L7: =SUM(L8:L11) -> 0.00 | M7: =SUM(M8:M11) -> 0.00 | N7: =SUM(N8:N11) -> 70,000.00 | O7: =SUM(O8:O11) -> 0.00 | P7: =SUM(P8:P11) -> 0.00 | Q7: =SUM(Q8:Q11) -> 0.00
A8: 208 | B8: 01 | C8: 09 | D8: 社会保险经办机构 | E8: 1,722,183.13 | F8: 1,722,183.13 | G8: 1,515,183.13 | H8: 207,000.00 | I8: 0.00 | J8: 0.00 | K8: 0.00 | L8: 0.00 | M8: 0.00 | N8: 0.00 | O8: 0.00 | P8: 0.00 | Q8: 0.00
A9: 208 | B9: 01 | C9: 06 | D9: 就业管理事务 | E9: 780,000.00 | F9: 0.00 | G9: 0.00 | H9: 0.00 | I9: 0.00 | J9: 780,000.00 | K9: 710,000.00 | L9: 0.00 | M9: 0.00 | N9: 70,000.00 | O9: 0.00 | P9: 0.00 | Q9: 0.00
A10: 208 | B10: 05 | C10: 05 | D10: 机关事业单位基本养老保险缴费支出 | E10: 283,211.80 | F10: 283,211.80 | G10: 283,211.80 | H10: 0.00 | I10: 0.00 | J10: 0.00 | K10: 0.00 | L10: 0.00 | M10: 0.00 | N10: 0.00 | O10: 0.00 | P10: 0.00 | Q10: 0.00
A11: 221 | B11: 02 | C11: 01 | D11: 住房公积金 | E11: 113,284.72 | F11: 113,284.72 | G11: 113,284.72 | H11: 0.00 | I11: 0.00 | J11: 0.00 | K11: 0.00 | L11: 0.00 | M11: 0.00 | N11: 0.00 | O11: 0.00 | P11: 0.00 | Q11: 0.00

Sheet 一般预算基本支出表
A2: 一般公共预算基本支出情况表
A3: 单位临湘市就业服务局 | I3: 单位：元
A4: 功能科目 | E4: 总计 | F4: 基本支出
A5: 科目编码 | D5: 科目名称 | F5: 合计 | G5: 工资福利支出 | H5: 一般商品和服务支出 | I5: 对个人和家庭的补助
A6: 类 | B6: 款 | C6: 项
D7: 合计 | E7: =SUM(E8:E10) -> 2,118,679.65 | F7: =SUM(F8:F10) -> 2,118,679.65 | G7: =SUM(G8:G10) -> 1,911,679.65 | H7: =SUM(H8:H10) -> 207,000.00 | I7: =SUM(I8:I10) -> 0.00
A8: 208 | B8: 05 | C8: 05 | D8: 机关事业单位基本养老保险缴费支出 | E8: 283,211.80 | F8: 283,211.80 | G8: 283,211.80 | H8: 0.00 | I8: 0.00
A9: 208 | B9: 01 | C9: 09 | D9: 社会保险经办机构 | E9: 1,722,183.13 | F9: 1,722,183.13 | G9: 1,515,183.13 | H9: 207,000.00 | I9: 0.00
A10: 221 | B10: 02 | C10: 01 | D10: 住房公积金 | E10: 113,284.72 | F10: 113,284.72 | G10: 113,284.72 | H10: 0.00 | I10: 0.00

Sheet 一般-工资福利
A2: 一般公共预算基本支出预算明细表-工资福利支出
A3: 单位临湘市就业服务局 | U3: 单位：元
A4: 功能科目 | D4: 科目名称 | E4: 总计 | F4: 工资性支出 | K4: 社会保障缴费 | S4: 伙食补贴支出 | U4: 其他工资福利支出
A5: 类 | B5: 款 | C5: 项 | F5: 合计 | G5: 基本工资 | H5: 津贴补贴 | I5: 奖金 | J5: 绩效工资 | K5: 合计 | L5: 基本医疗保险 | M5: 公务员医疗补助缴费 | N5: 其他社会保障缴费 | O5: 机关事业单位基本养老保险缴费 | P5: 职业年金 | Q5: 住房公积金 | R5: 医疗费 | S5: 合计 | T5: 伙食补助费
D6: 合计 | E6: =SUM(E7:E9) -> 1,911,679.65 | F6: =SUM(F7:F9) -> 1,416,059.00 | G6: =SUM(G7:G9) -> 816,756.00 | H6: =SUM(H7:H9) -> 531,240.00 | I6: =SUM(I7:I9) -> 68,063.00 | J6: =SUM(J7:J9) -> 0.00 | K6: =SUM(K7:K9) -> 495,620.65 | L6: =SUM(L7:L9) -> 99,124.13 | M6: =SUM(M7:M9) -> 0.00 | N6: =SUM(N7:N9) -> 0.00 | O6: =SUM(O7:O9) -> 283,211.80 | P6: =SUM(P7:P9) -> 0.00 | Q6: =SUM(Q7:Q9) -> 113,284.72 | R6: =SUM(R7:R9) -> 0.00 | S6: =SUM(S7:S9) -> 0.00 | T6: =SUM(T7:T9) -> 0.00 | U6: =SUM(U7:U9) -> 0.00
A7: 208 | B7: 5 | C7: 5 | D7: 机关事业单位基本养老保险缴费支出 | E7: 283,211.80 | F7: 0.00 | G7: 0.00 | H7: 0.00 | I7: 0.00 | J7: 0.00 | K7: 283,211.80 | L7: 0.00 | M7: 0.00 | N7: 0.00 | O7: 283,211.80 | P7: 0.00 | Q7: 0.00 | R7: 0.00 | S7: 0.00 | T7: 0.00 | U7: 0.00
A8: 208 | B8: 1 | C8: 9 | D8: 社会保险经办机构 | E8: 1,515,183.13 | F8: 1,416,059.00 | G8: 816,756.00 | H8: 531,240.00 | I8: 68,063.00 | J8: 0.00 | K8: 99,124.13 | L8: 99,124.13 | M8: 0.00 | N8: 0.00 | O8: 0.00 | P8: 0.00 | Q8: 0.00 | R8: 0.00 | S8: 0.00 | T8: 0.00 | U8: 0.00
A9: 221 | B9: 2 | C9: 1 | D9: 住房公积金 | E9: 113,284.72 | F9: 0.00 | G9: 0.00 | H9: 0.00 | I9: 0.00 | J9: 0.00 | K9: 113,284.72 | L9: 0.00 | M9: 0.00 | N9: 0.00 | O9: 0.00 | P9: 0.00 | Q9: 113,284.72 | R9: 0.00 | S9: 0.00 | T9: 0.00 | U9: 0.00

Sheet 一般-商品和服务支出
A2: 一般公共预算基本预算支出明细表-商品和服务支出
X3: 单位：元
A4: 功能科目 | D4: 科目名称 | E4: 总计 | F4: 办公费 | G4: 日常印刷费 | H4: 水费 | I4: 电费 | J4: 邮电费 | K4: 取暖费 | L4: 物业管理费 | M4: 差旅费 | N4: 日常维修(护)费 | O4: 租赁费 | P4: 会议费 | Q4: 培训费 | R4: 公务接待费 | S4: 劳务费 | T4: 工会经费 | U4: 福利费 | V4: 公务用车运行维护费 | W4: 其他交通费 | X4: 其他一般商品和服务支出
A5: 类 | B5: 款 | C5: 项
D6: 合计 | E6: =SUM(E7:E8) -> 917,000.00 | F6: =SUM(F7:F8) -> 262,000.00 | G6: =SUM(G7:G8) -> 73,750.00 | H6: =SUM(H7:H8) -> 55,000.00 | I6: =SUM(I7:I8) -> 120,000.00 | J6: =SUM(J7:J8) -> 58,750.00 | K6: =SUM(K7:K8) -> 0.00 | L6: =SUM(L7:L8) -> 0.00 | M6: =SUM(M7:M8) -> 67,500.00 | N6: =SUM(N7:N8) -> 72,500.00 | O6: =SUM(O7:O8) -> 0.00 | P6: =SUM(P7:P8) -> 45,000.00 | Q6: =SUM(Q7:Q8) -> 47,500.00 | R6: =SUM(R7:R8) -> 108,000.00 | S6: =SUM(S7:S8) -> 0.00 | T6: =SUM(T7:T8) -> 0.00 | U6: =SUM(U7:U8) -> 0.00 | V6: =SUM(V7:V8) -> 0.00 | W6: =SUM(W7:W8) -> 0.00 | X6: =SUM(X7:X8) -> 7,000.0000
A7: 208 | B7: 1 | C7: 6 | D7: 就业管理事务 | E7: 710,000.00 | F7: 247,000.00 | G7: 60,000.00 | H7: 40,000.00 | I7: 100,000.00 | J7: 40,000.00 | K7: 0.00 | L7: 0.00 | M7: 30,000.00 | N7: 60,000.00 | O7: 0.00 | P7: 30,000.00 | Q7: 20,000.00 | R7: 83,000.00 | S7: 0.00 | T7: 0.00 | U7: 0.00 | V7: 0.00 | W7: 0.00 | X7: 0.0000
A8: 208 | B8: 1 | C8: 9 | D8: 社会保险经办机构 | E8: 207,000.00 | F8: 15,000.00 | G8: 13,750.00 | H8: 15,000.00 | I8: 20,000.00 | J8: 18,750.00 | K8: 0.00 | L8: 0.00 | M8: 37,500.00 | N8: 12,500.00 | O8: 0.00 | P8: 15,000.00 | Q8: 27,500.00 | R8: 25,000.00 | S8: 0.00 | T8: 0.00 | U8: 0.00 | V8: 0.00 | W8: 0.00 | X8: 7,000.0000

Sheet 一般-个人家庭
A2: 一般公共预算基本支出明细表-对个人和家庭的补助
P3: 单位：元
A4: 功能科目 | D4: 科目名称 | E4: 总计 | F4: 离休费 | G4: 退休费 | H4: 退职(役)费 | I4: 抚恤金 | J4: 生活补助 | K4: 救济费 | L4: 医疗费 | M4: 助学金 | N4: 奖励金 | O4: 生产补贴 | P4: 其他对个人和家庭的补助
A5: 类 | B5: 款 | C5: 项

Sheet 基金
A2: 政府性基金预算支出情况表
A3: 单位临湘市就业服务局 | Q3: 单位：元
A4: 功能科目 | E4: 总计 | F4: 基本支出 | J4: 项目支出
A5: 科目编码 | D5: 科目名称 | F5: 合计 | G5: 工资福利支出 | H5: 一般商品和服务支出 | I5: 对个人和家庭的补助 | J5: 合计 | K5: 商品和服务支出 | L5: 对个人和家庭的补助支出 | M5: 基本建设 | N5: 其他资本性支出 | O5: 对企事业单位的补贴 | P5: 其他支出 | Q5: 债务利息及费用支出
A6: 类 | B6: 款 | C6: 项

Sheet 专户
A2: 纳入专户管理的非税收入预算拨款汇总表
A3: 单位临湘市就业服务局 | Q3: 单位：元
A4: 功能科目 | E4: 总计 | F4: 基本支出 | J4: 项目支出
A5: 科目编码 | D5: 科目名称 | F5: 合计 | G5: 工资福利支出 | H5: 一般商品和服务支出 | I5: 对个人和家庭的补助 | J5: 合计 | K5: 商品和服务支出 | L5: 对个人和家庭的补助支出 | M5: 基本建设 | N5: 其他资本性支出 | O5: 对企事业单位的补贴 | P5: 其他支出 | Q5: 债务利息及费用支出
A6: 类 | B6: 款 | C6: 项

Sheet 经费拨款
A2: 一般预算拨款-经费拨款
A3: 单位临湘市就业服务局 | Q3: 单位：元
A4: 功能科目 | E4: 总计 | F4: 基本支出 | J4: 项目支出
A5: 科目编码 | D5: 科目名称 | F5: 合计 | G5: 工资福利支出 | H5: 一般商品和服务支出 | I5: 对个人和家庭的补助 | J5: 合计 | K5: 商品和服务支出 | L5: 对个人和家庭的补助支出 | M5: 基本建设 | N5: 其他资本性支出 | O5: 对企事业单位的补贴 | P5: 其他支出 | Q5: 债务利息及费用支出
A6: 类 | B6: 款 | C6: 项
D7: 合计 | E7: =SUM(E8:E11) -> 2,898,679.65 | F7: =SUM(F8:F11) -> 2,118,679.65 | G7: =SUM(G8:G11) -> 1,911,679.65 | H7: =SUM(H8:H11) -> 207,000.00 | I7: =SUM(I8:I11) -> 0.00 | J7: =SUM(J8:J11) -> 780,000.00 | K7: =SUM(K8:K11) -> 710,000.00 | L7: =SUM(L8:L11) -> 0.00 | M7: =SUM(M8:M11) -> 0.00 | N7: =SUM(N8:N11) -> 70,000.00 | O7: =SUM(O8:O11) -> 0.00 | P7: =SUM(P8:P11) -> 0.00 | Q7: =SUM(Q8:Q11) -> 0.00
A8: 208 | B8: 1 | C8: 9 | D8: 社会保险经办机构 | E8: 1,722,183.13 | F8: 1,722,183.13 | G8: 1,515,183.13 | H8: 207,000.00 | I8: 0.00 | J8: 0.00 | K8: 0.00 | L8: 0.00 | M8: 0.00 | N8: 0.00 | O8: 0.00 | P8: 0.00 | Q8: 0.00
A9: 208 | B9: 1 | C9: 6 | D9: 就业管理事务 | E9: 780,000.00 | F9: 0.00 | G9: 0.00 | H9: 0.00 | I9: 0.00 | J9: 780,000.00 | K9: 710,000.00 | L9: 0.00 | M9: 0.00 | N9: 70,000.00 | O9: 0.00 | P9: 0.00 | Q9: 0.00
A10: 208 | B10: 5 | C10: 5 | D10: 机关事业单位基本养老保险缴费支出 | E10: 283,211.80 | F10: 283,211.80 | G10: 283,211.80 | H10: 0.00 | I10: 0.00 | J10: 0.00 | K10: 0.00 | L10: 0.00 | M10: 0.00 | N10: 0.00 | O10: 0.00 | P10: 0.00 | Q10: 0.00
A11: 221 | B11: 2 | C11: 1 | D11: 住房公积金 | E11: 113,284.72 | F11: 113,284.72 | G11: 113,284.72 | H11: 0.00 | I11: 0.00 | J11: 0.00 | K11: 0.00 | L11: 0.00 | M11: 0.00 | N11: 0.00 | O11: 0.00 | P11: 0.00 | Q11: 0.00

Sheet 专项
A2: 专项资金预算汇总表
H3: 单位：元
A4: 项目名称 | B4: 总计 | C4: 一般预算拨款 | E4: 纳入专户管理的非税收入拨款 | F4: 政府性基金拨款 | G4: 上级补助收入 | H4: 其他收入
C5: 经费拨款 | D5: 纳入预算管理的非税收入拨款
B6: =B7 -> 780000.00 | C6: =C7 -> 780000.00 | D6: =D7 -> 0.00 | E6: =E7 -> 0.00 | F6: =F7 -> 0.00 | G6: =G7 -> 0.00 | H6: =H7 -> 0.00
A7: 专项工作经费 | B7: 780000.00 | C7: 780000.00 | D7: 0.00 | E7: 0.00 | F7: 0.00 | G7: 0.00 | H7: 0.00

Sheet 三公
A1: 一般公共预算“三公”经费预算表
A2: 单位：临湘市就业服务局 | G2: 单位：元
A3: 单位名称 | B3: 三公经费预算数(一般公共预算拨款)
B4: 小计 | C4: 公务接待费 | D4: 公务用车购置及运行费 | E4: 其中： | G4: 因公出国(境)费用
E5: 公务用车购置费 | F5: 公务用车运行维护费
A6: 合计 | B6: =B7 -> 111,000.00 | C6: =C7 -> 111,000.00 | D6: =D7 -> 0.00 | E6: =E7 -> 0.00 | F6: =F7 -> 0.00 | G6: =G7 -> 0.00
A7: 临湘市就业服务局 | B7: 111,000.00 | C7: 111,000.00 | D7: 0.00 | E7: 0.00 | F7: 0.00 | G7: 0.00

Sheet 绩效申报
A1: 项目绩效目标申报表
A2: 单位：临湘市就业服务局 | K2: 单位：万元
A3: 单位编码 | B3: 单位名称 | C3: 申报金额 | D3: 项目实施产出成果目标 | H3: 项目绩效目标
D4: 定量目标（成果目标） | G4: 定性目标（成果目标） | H4: 定量目标（绩效目标） | K4: 定性目标（绩效目标）
D5: 目标类型 | E5: 目标（指标）内容 | F5: 目标（指标）值 | H5: 效益类型 | I5: 目标（指标）内容B | J5: 目标（指标）值B
A6: ** | B6: ** | C6: 1 | D6: 2 | E6: 3 | F6: 4 | G6: 5 | H6: 6 | I6: 7 | J6: 8 | K6: 9
B7: 合计 | C7: =C8 -> 78.00
A8: 502002 | B8: 临湘市就业服务局 | C8: 78.00

Sheet 绩效目标整体申报
A1: 整体支出绩效目标申报表
A2: 单位：临湘市就业服务局 | X2: 单位：万元
A3: 单位编码 | B3: 单位名称 | C3: 预算绩效管理联络员 | D3: 联系电话 | E3: 人员编制数 | F3: 实有人数 | G3: 单位职能 | H3: 单位年度收入预算（万元） | M3: 单位年度支出预算（万元） | T3: 部门整体支出年度绩效目标 | U3: 部门整体支出年度绩效指标 | W3: 其他说明的问题 | X3: 财政部门审核意见
H4: 收入合计 | I4: 公共财政拨款 | J4: 政府性基金拨款 | K4: 非税收入拨款 | L4: 其他拨款 | M4: 支出合计 | N4: 基本支出 | O4: 项目支出 | P4: 其中三公经费预算（万元） | Q4: 公务用车运行和购置费 | R4: 公务接待费 | S4: 因公出国（境）费 | U4: 数量指标 | V4: 效益指标
A5: ** | B5: ** | C5: ** | D5: ** | E5: 1 | F5: 2 | G5: 3 | H5: 4 | I5: 5 | J5: 6 | K5: 7 | L5: 8 | M5: 9 | N5: 10 | O5: 11 | P5: 12 | Q5: 13 | R5: 14 | S5: 15 | T5: 16 | U5: 17 | V5: 18 | W5: 19 | X5: 20
B6: 合计 | E6: =E7 -> 28 | F6: =F7 -> 28 | H6: =H7 -> 312.12 | I6: =I7 -> 289.87 | J6: =J7 -> 0.00 | K6: =K7 -> 0.00 | L6: =L7 -> 22.25 | M6: =M7 -> 312.12 | N6: =N7 -> 234.12 | O6: =O7 -> 78.00 | P6: =P7 -> 11.10 | Q6: =Q7 -> 0.00 | R6: =R7 -> 11.10 | S6: =S7 -> 0.00
A7: 502002 | B7: 临湘市就业服务局 | C7: 李超峦 | D7: 15197020818 | E7: 28 | F7: 28 | G7: 负责劳动力市场的发展，规划和管理以及监督实施。执行促进劳动就业服务企业发展的政策，负责职业介绍机构管理和组织实施以及对区域劳动力流动，农村剩余劳动力开发就业，农村劳动力跨地区有序流动的管理。 | H7: 312.12 | I7: 289.87 | J7: 0.00 | K7: 0.00 | L7: 22.25 | M7: 312.12 | N7: 234.12 | O7: 78.00 | P7: 11.10 | Q7: 0.00 | R7: 11.10 | S7: 0.00 | T7: 城镇新增就业，城镇“零就业”家庭动态援助，新增农村劳动力转移就业，失业保险基金征缴，开展创业培训，开展创新创业贷款。 | U7: 培训开班5期，学员135人；劳动力转移就业近5000人；放贷410万元；新增就业近5011人；征缴失业基金200多万元。 | V7: 经济效益和环境效益等
